fUSD/lending_fUSD_20240501
["ID","MTS","AMOUNT","RATE_DAILY","PERIOD"]
[325223265,1714596642959,-2577.31885,0.00029,3]
[325223266,1714596642972,-687.549999,0.00029,3]
[325223267,1714596642983,-208802.39302284,0.00029,3]
[325223268,1714596643030,-702.27973956,0.00029,3]
[325223270,1714596643042,-1433.49808323,0.00029,3]
[325223272,1714596643057,-428.25163976,0.00029,3]
[325223279,1714596643110,-506.10662483,0.00029,3]
[325223281,1714596643122,-576.0755,0.00029,3]
[325223284,1714596643133,-333.81892786,0.00029,3]
[325223286,1714596643144,-359.94446074,0.00029,3]
[325223288,1714596643155,-1575.09996526,0.00029,3]
[325223290,1714596643166,-4874.22230491,0.00029,3]
[325223406,1714596644155,-500.0,0.00015963,2]
[325223408,1714596644165,-683.69917545,0.00017109,2]
[325223410,1714596644175,-436.31595754,0.00028471,2]
[325223412,1714596644184,-201.02497943,0.000289,2]
[325223414,1714596644194,-2692.21017118,0.00029,3]
[325223417,1714596644206,-2186.37961417,0.00029,3]
[325223420,1714596644232,-1000.0,0.00026,2]
[325223422,1714596644241,-530607.05035666,0.00029,3]
[325223714,1714596647976,-682.68673074,0.00027397,10]
[325223715,1714596648279,-514.73239628,0.00027397,10]
[325223716,1714596648290,-900.8999995,0.00027397,10]
[325223717,1714596648302,-2794.28087348,0.00027397,10]
[325223718,1714596648311,-1147.17786975,0.0002842,2]
[325223719,1714596648321,-538.02211765,0.00028899,2]
[325223720,1714596648331,-1242.67581309,0.00028899,2]
[325223721,1714596648340,-9030.20451836,0.000289,2]
[325226878,1714596681693,9101.58532046,9e-05,2]
[325228541,1714597249020,946.54987628,0.00010925,2]
[325228882,1714597435608,165.31,0.00010616,2]
[325229276,1714597497282,153.36464279,0.00010907,2]
[325229277,1714597502221,153.36464279,0.0001096,2]
[325229278,1714597516997,250.0,0.00010959,2]
[325229279,1714597528455,3199.98,0.00010664,2]
[325229280,1714597570766,545.99933752,0.00011,2]
[325229281,1714597591208,524.39078621,0.00011,2]
[325229282,1714597594890,370.31865008,0.00011,2]
[325229283,1714597596012,3958.28590314,0.00010664,2]
[325229284,1714597596659,968.39033166,0.00011,2]
[325229285,1714597600626,3416.05573349,0.00011,2]
[325229286,1714597604638,11852.89,0.00010577,2]
[325229289,1714597663725,250.0,0.00010573,2]
[325229290,1714597666040,493.33,0.00010573,2]
[325229291,1714597677883,1472.47323451,0.00010577,2]
[325229293,1714597700586,1472.47323451,0.00010577,2]
[325229295,1714597713828,545.99933752,0.00011,2]
[325229296,1714597715794,-162.22835708,0.00011001,2]
[325229297,1714597715821,-1242.89855469,0.00011001,2]
[325229298,1714597715847,-43.57148874,0.00011002,2]
[325229299,1714597715901,-106.42851126,0.00011002,2]
[325229300,1714597715929,-153.36464279,0.00011012,2]
[325229301,1714597715957,-153.36464279,0.00011065,2]
[325229302,1714597715983,-153.36464279,0.00011117,2]
[325229303,1714597716008,-882.17596088,0.00011132,2]
[325229304,1714597716047,-1448.69840051,0.00011132,2]
[325229305,1714597716086,-206.74527704,0.00011132,2]
[325229306,1714597716127,-1448.69840051,0.00011132,2]
[325229307,1714597716164,-1448.69840051,0.00011132,2]
[325229308,1714597716201,-1448.69840051,0.00011132,2]
[325229309,1714597716243,-1448.69840051,0.00011132,2]
[325229310,1714597721528,23900.0,0.0001064,2]
[325229311,1714597723834,1472.47323451,0.00010577,2]
[325229312,1714597745841,1197.6180751,0.00011,2]
[325229313,1714597806937,200.0,0.00010959,2]
[325229324,1714597831803,-153.36464279,0.0001117,2]
[325229325,1714597831814,-19455.37067064,0.00011198,2]
[325229326,1714597831824,-403.77,0.00011199,2]
[325229327,1714597831834,-153.36464279,0.00011222,2]
[325229328,1714597831843,-403.77,0.00011229,2]
[325229329,1714597831852,-403.77,0.0001126,2]
[325229330,1714597831862,-153.36464279,0.00011275,2]
[325229331,1714597831871,-403.77,0.00011291,2]
[325229332,1714597831880,-403.77,0.00011322,2]
[325229333,1714597831890,-153.36464279,0.00011327,2]
[325229334,1714597831899,-614.77,0.00011332,2]
[325229335,1714597831910,-277.77,0.00011332,2]
[325229336,1714597831919,-403.77,0.00011352,2]
[325229337,1714597831928,-153.36464279,0.0001138,2]
[325229338,1714597831938,-403.77,0.00011383,2]
[325229339,1714597831947,-403.77,0.00011414,2]
[325229340,1714597831956,-153.36464279,0.00011432,2]
[325229341,1714597831965,-403.77,0.00011444,2]
[325229343,1714597831974,-403.77,0.00011475,2]
[325229345,1714597831983,-153.36464279,0.00011485,2]
[325229347,1714597831992,-403.77,0.00011506,2]
[325229349,1714597832000,-403.77,0.00011537,2]
[325229351,1714597832010,-153.36464279,0.00011537,2]
[325229353,1714597832019,-403.77,0.00011567,2]
[325229355,1714597832028,-153.36464279,0.0001159,2]
[325229357,1714597832038,-403.77,0.00011598,2]
[325229359,1714597832047,-403.77,0.00011629,2]
[325229362,1714597832056,-153.36464279,0.00011642,2]
[325229364,1714597832065,-403.77,0.00011659,2]
[325229367,1714597832074,-403.77,0.0001169,2]
[325229370,1714597832083,-153.36464279,0.00011695,2]
[325229373,1714597832092,-400.0,0.00011718,2]
[325229376,1714597832101,-403.77,0.00011721,2]
[325229379,1714597832110,-153.36464279,0.00011747,2]
[325229382,1714597832119,-403.77,0.00011752,2]
[325229385,1714597832128,-403.77,0.00011782,2]
[325229386,1714597832138,-395.58540756,0.00011798,2]
[325229389,1714597832147,-369.75423892,0.00011798,2]
[325229391,1714597832157,-341.77497997,0.00011798,2]
[325229393,1714597832166,-690.21925139,0.00011798,2]
[325229395,1714597832175,-1242.45307149,0.00011798,2]
[325229396,1714597832184,-545.68136386,0.00011798,2]
[325229397,1714597832194,-162.1471077,0.00011798,2]
[325229398,1714597832203,-363.92077602,0.00011799,2]
[325229399,1714597832211,-207.49945375,0.000118,2]
[325229400,1714597832220,-57107.92397422,0.000118,2]
[325229401,1714597832230,-161.46228048,0.000118,2]
[325229402,1714597832239,-153.36464279,0.000118,2]
[325229403,1714597832248,-939.7309225,0.000118,2]
[325229404,1714597832257,-1700.0,0.000118,4]
[325229405,1714597832266,-995.09588805,0.000118,2]
[325229406,1714597832343,-1713.30000046,0.000118,2]
[325229407,1714597832355,-377.14468412,0.000118,2]
[325229408,1714597832368,-486.93,0.000118,2]
[325229409,1714597832426,-412.52060489,0.000118,2]
[325229410,1714597832435,-371.50142569,0.0001189,2]
[325229411,1714597832444,-781.96889708,0.00011896,2]
[325229412,1714597832453,-309.1165197,0.00011898,2]
[325229413,1714597832465,-281.63428196,0.00011898,2]
[325229471,1714597838701,-1186.9147991,0.00011898,2]
[325229474,1714597838712,-4415.16760854,0.00011898,2]
[325229475,1714597838722,-317.14354643,0.00011899,2]
[325229477,1714597838731,-566116.20822628,0.000119,2]
[325229484,1714597838782,-710.56534018,0.000119,2]
[325229569,1714597839735,-1801.45940999,0.000119,2]
[325229579,1714597839782,-3889.66757929,0.000119,2]
[325229583,1714597839794,-610.0,0.000119,2]
[325229585,1714597839806,-600.0,0.000119,2]
[325229625,1714597840015,-4395.75536144,0.000119,2]
[325229856,1714597842073,-305.47563601,0.000119,2]
[325229858,1714597842089,-976.92180704,0.000119,2]
[325229861,1714597842101,-44506.1787595,0.000119,2]
[325229863,1714597842113,-8938.41404927,0.000119,2]
[325229865,1714597842124,-18965.25422902,0.000119,2]
[325229961,1714597842795,-17702.22320371,0.000119,2]
[325229964,1714597842807,-6584.19121321,0.000119,2]
[325229969,1714597842829,-445.27105269,0.000119,2]
[325229972,1714597842840,-2068.35907027,0.000119,2]
[325229985,1714597842954,-361679.75873278,0.000119,2]
[325229990,1714597842994,-1050.0,0.000119,2]
[325230288,1714597845977,-411.2743632,0.000119,2]
[325230291,1714597845988,-282.21835,0.000119,2]
[325230475,1714597848012,2554.59704429,0.00010959,2]
[325230764,1714597864033,93130.53138545,0.00010959,2]
[325230765,1714597965725,545.91901904,8.767e-05,2]
[325230766,1714598380872,388.07401994,0.00010928,2]
[325230768,1714598464256,817.84000414,0.00010917,2]
[325230769,1714598517994,1472.230329,0.00010917,2]
[325230770,1714598526855,365.94145926,0.00010917,2]
[325230771,1714598529513,2085.1919,0.00010925,2]
[325230772,1714598529694,288.56832451,0.00010917,2]
[325230773,1714598530989,20179.52552551,0.00010917,2]
[325230774,1714598531321,155.0,0.00010917,2]
[325230775,1714598533411,29684.68802473,0.00010917,2]
[325230776,1714598538048,7502.23409447,0.00010917,2]
[325230777,1714598571561,232.2038,0.00010916,2]
[325230778,1714598599129,192.90820693,0.00011,2]
[325230779,1714598600489,208.058967,0.00011,2]
[325230780,1714598601151,236.72474812,0.00011,2]
[325230781,1714598602404,781.96889708,0.00011,2]
[325230782,1714598604794,2181.42240899,0.00011,2]
[325230783,1714598612034,545.99933752,0.00011,2]
[325230784,1714598614748,3083.19521143,0.00011,2]
[325230785,1714598616490,157.38146901,0.00011,2]
[325230786,1714598624992,4587.01603255,0.00011,2]
[325230787,1714598631322,206.94540813,0.00011,2]
[325230788,1714598637082,155.0,0.00011,2]
[325230789,1714598638380,-3400.0,0.000119,4]
[325230790,1714598640340,155.0,0.00011,2]
[325230791,1714598643753,3002.52973088,0.00011,2]
[325230792,1714598645414,1242.89855469,0.00011,2]
[325230793,1714598665567,565.8459832,0.00011,2]
[325231195,1714598714237,200.46583698,0.00011,2]
[325231196,1714598753002,545.99933752,0.00011,2]
[325231197,1714598794143,545120.36570945,0.00011,2]
[325231198,1714598795952,361.46733542,0.00011,2]
[325231199,1714598799147,155.0,0.00011,2]
[325231200,1714598799533,7503.5046284,0.00011,2]
[325231201,1714598799675,288.61820171,0.00011,2]
[325231202,1714598802758,1472.47323451,0.00011,2]
[325231203,1714598803339,155.0,0.00011,2]
[325231204,1714598808772,173.18880076,0.00011,2]
[325231205,1714598808805,399.55332141,0.00011,2]
[325231206,1714598810129,189308.9143278,0.00011,2]
[325231207,1714598813902,361.46733542,0.00011,2]
[325231208,1714598814533,155.0,0.00011,2]
[325231209,1714598815023,205.88387895,0.00011,2]
[325231210,1714598815524,7503.5046284,0.00011,2]
[325231211,1714598817671,418.73028987,0.00011,2]
[325231212,1714598821186,943.66867027,0.00011,2]
[325231213,1714598822145,1482.45019123,0.00011,2]
[325231214,1714598825346,249.91868664,0.00011,2]
[325231215,1714598828737,173.18880076,0.00011,2]
[325231216,1714598831872,361.46733542,0.00011,2]
[325231217,1714598836465,155.83158027,0.00011,2]
[325231218,1714598837545,7503.5046284,0.00011,2]
[325231219,1714598842605,399.55332141,0.00011,2]
[325231220,1714598845871,943.66867027,0.00011,2]
[325231221,1714598846716,159.45473794,0.00011,2]
[325231222,1714598851376,1352.6419707,0.00010999,2]
[325231223,1714598853866,361.46733542,0.00011,2]
[325231224,1714598857528,3339.75036542,0.00011,2]
[325231225,1714598864575,399.55332141,0.00011,2]
[325231226,1714598865135,951.50486637,0.00011,2]
[325231227,1714598873876,361.46733542,0.00011,2]
[325231228,1714598890661,399.55332141,0.00011,2]
[325231229,1714598891870,180.61344634,0.00011,2]
[325231230,1714598906611,398.32212063,0.00011,2]
[325231232,1714598999572,20960.33,0.00010959,2]
[325231238,1714599032513,-545.99933752,0.00011004,2]
[325231239,1714599032522,-155.76623754,0.00011005,2]
[325231240,1714599032532,-250.0,0.00011019,2]
[325231241,1714599032542,-167.78,0.00011022,2]
[325231242,1714599032551,-1000.0,0.00011047,2]
[325231243,1714599032561,-193.45,0.00011068,2]
[325231244,1714599032570,-2992.6,0.00011126,2]
[325231245,1714599032579,-154.33,0.00011167,2]
[325231246,1714599032592,-250.0,0.00011187,2]
[325231247,1714599032601,-200.0,0.0001122,2]
[325231248,1714599032611,-1143.86500859,0.00011299,2]
[325231249,1714599032620,-200.0,0.00011468,2]
[325231250,1714599032633,-150.0,0.00011627,2]
[325231251,1714599032644,-150.0,0.00011717,2]
[325231252,1714599032653,-1351.15072062,0.00011799,2]
[325231253,1714599032663,-14696.30286857,0.000118,2]
[325231254,1714599032678,-785.26893143,0.000118,2]
[325231255,1714599032688,-483.4948976,0.000118,2]
[325231256,1714599032703,-500.77266238,0.000118,2]
[325231257,1714599032732,-2669.40454002,0.000118,2]
[325231258,1714599032742,-26403.09545998,0.000118,2]
[325231259,1714599032759,-347.96815075,0.000118,2]
[325231260,1714599032783,-4044.72301169,0.000118,2]
[325231261,1714599032794,-1700.0,0.000118,2]
[325231262,1714599032899,-700.08093092,0.000118,2]
[325231286,1714599038050,-1162.43162,0.000118,2]
[325231287,1714599038324,-706.95357276,0.000118,2]
[325231288,1714599038338,-400.0,0.000118,2]
[325231289,1714599038349,-32965.70965107,0.000118,2]
[325231290,1714599038360,-8355.461751,0.000118,2]
[325231291,1714599038372,-23213.57585183,0.000118,2]
[325231293,1714599038382,-3588.80031644,0.00011883,2]
[325231295,1714599038391,-277.08192854,0.00011894,2]
[325231297,1714599038400,-236.37639938,0.00011894,2]
[325231299,1714599038409,-2121.07744415,0.00011894,2]
[325231301,1714599038419,-1466.99627734,0.00011894,2]
[325231302,1714599038428,-192.2740503,0.00011894,2]
[325231305,1714599038438,-633.37212294,0.00011894,2]
[325231361,1714599038985,-142.99995875,0.00011894,2]
[325231363,1714599038994,-156.50522326,0.00011894,2]
[325231365,1714599039005,-2156.94006929,0.00011894,2]
[325231368,1714599039015,-206.4972968,0.00011894,2]
[325231370,1714599039025,-155.18518954,0.00011894,2]
[325231371,1714599039034,-155.24595245,0.00011894,2]
[325231373,1714599039044,-2999.12961722,0.00011894,2]
[325231376,1714599039053,-564.65435533,0.00011894,2]
[325231377,1714599039064,-174.6122179,0.00011894,2]
[325231380,1714599039074,-702.79828212,0.00011894,2]
[325231382,1714599039084,-363.46064478,0.00011895,2]
[325231384,1714599039095,-2732.61563255,0.00011896,2]
[325231387,1714599039119,-3062.04830723,0.00011896,2]
[325231389,1714599039130,-3722.87678216,0.00011896,2]
[325231396,1714599039180,-3195.21607603,0.00011896,2]
[325231398,1714599039192,-1986.0642,0.00011896,2]
[325231400,1714599039204,-1057.57328384,0.00011896,2]
[325231403,1714599039215,-2534.27766681,0.00011896,2]
[325231405,1714599039226,-472.38042118,0.00011896,2]
[325231407,1714599039238,-901.88900117,0.00011896,2]
[325231409,1714599039252,-390.21121279,0.00011896,2]
[325231411,1714599039263,-5820.15846778,0.00011896,2]
[325231414,1714599039275,-432.40763719,0.00011896,2]
[325231416,1714599039284,-386.56904311,0.00011897,2]
[325231418,1714599039294,-316.65595171,0.00011898,2]
[325231420,1714599039303,-155.0,0.00011898,2]
[325231422,1714599039312,-434.78736799,0.00011898,2]
[325231485,1714599040081,-275.55207876,0.00011898,2]
[325231486,1714599040092,-462.94292124,0.00011898,2]
[325231487,1714599040104,-504.00250118,0.00011898,2]
[325231488,1714599040113,-311.15002604,0.00011898,2]
[325231489,1714599040124,-448.47650388,0.00011898,2]
[325231490,1714599040136,-235.98882441,0.00011898,2]
[325231491,1714599040145,-118.73905645,0.00011898,2]
[325231492,1714599040156,-136.62783525,0.00011898,2]
[325231493,1714599040165,-167.36885889,0.00011898,2]
[325231494,1714599040175,-44.50298478,0.00011898,2]
[325231495,1714599040186,-110.83241491,0.00011898,2]
[325231496,1714599040196,-149.75758509,0.00011898,2]
[325231497,1714599040207,-818.08405794,0.00011898,2]
[325231498,1714599040217,-155.32715041,0.00011898,2]
[325231499,1714599040227,-641.79865261,0.00011898,2]
[325231500,1714599040236,-155.0,0.00011898,2]
[325231501,1714599040246,-155.38150104,0.00011898,2]
[325231502,1714599040255,-155.0,0.00011898,2]
[325231503,1714599040264,-155.0,0.00011898,2]
[325231504,1714599040274,-4407.35148608,0.00011898,2]
[325231505,1714599040282,-155.0,0.00011898,2]
[325231506,1714599040292,-305.33150416,0.00011898,2]
[325231507,1714599040301,-787.08726309,0.00011898,2]
[325231508,1714599040310,-155.0,0.00011898,2]
[325231509,1714599040319,-380.65588204,0.00011898,2]
[325231510,1714599040328,-161.47811392,0.00011898,2]
[325231511,1714599040338,-487.22450388,0.00011898,2]
[325231512,1714599040349,-155.0,0.00011898,2]
[325231513,1714599040358,-343.10485617,0.00011898,2]
[325231514,1714599040367,-376.7617514,0.00011898,2]
[325231515,1714599040377,-559.86765241,0.00011898,2]
[325231516,1714599040386,-155.34681504,0.00011898,2]
[325231517,1714599040396,-362.51852426,0.00011898,2]
[325231518,1714599040407,-369.94061345,0.00011898,2]
[325231519,1714599040416,-210.55984644,0.00011898,2]
[325231520,1714599040425,-2359.48463868,0.00011898,2]
[325231521,1714599040434,-155.0,0.00011898,2]
[325231522,1714599040443,-262.05472298,0.000119,2]
[325231523,1714599040468,-4211.70784259,0.000119,2]
[325231524,1714599040479,-2011.22327998,0.000119,2]
[325231525,1714599040490,-3170.32060532,0.000119,2]
[325231526,1714599040500,-2801.81458229,0.000119,2]
[325231527,1714599040580,-588.66990638,0.000119,2]
[325231528,1714599040594,-1819.99999776,0.000119,2]
[325231529,1714599040827,-57983.71759473,0.000119,2]
[325231530,1714599040838,-290.77689149,0.000119,2]
[325231531,1714599040853,-290.82,0.000119,2]
[325231532,1714599040864,-250.5,0.000119,2]
[325231533,1714599040875,-555.29,0.000119,2]
[325231534,1714599040886,-1040.79092795,0.000119,2]
[325231535,1714599040897,-1902.33213648,0.000119,2]
[325231536,1714599040924,-397.00719756,0.000119,2]
[325231537,1714599040936,-3151.59999991,0.000119,2]
[325231538,1714599040947,-509.999985,0.000119,2]
[325231539,1714599040958,-8102.55812948,0.000119,2]
[325231540,1714599040970,-764.81779007,0.000119,2]
[325231541,1714599040982,-5098.14701456,0.000119,2]
[325231542,1714599040992,-1000.0,0.000119,2]
[325231543,1714599041001,-1175.05193,0.000119,2]
[325231544,1714599041010,-5000.0,0.00012,2]
[325231545,1714599041019,-3404.88584473,0.00012,2]
[325231546,1714599041028,-1200.0,0.00012,2]
[325231547,1714599041037,-11429.99168288,0.00012,2]
[325231548,1714599041046,-167.17,0.00012059,2]
[325231549,1714599041056,-953.70124616,0.00012346,2]
[325231550,1714599041065,-12622.09297705,0.000124,2]
[325231551,1714599041074,-1000.0,0.00012428,2]
[325231552,1714599041084,-155.49354331,0.000125,2]
[325231553,1714599041097,-287.13095426,0.000125,2]
[325231554,1714599041106,-2000.0,0.000125,4]
[325231555,1714599041115,-4000.0,0.000126,4]
[325231556,1714599041124,-155.0,0.000127,2]
[325231557,1714599041134,-6000.0,0.000127,4]
[325231558,1714599041143,-429.93231495,0.0001278,2]
[325231559,1714599041338,-1958.00263316,0.000128,4]
[325231560,1714599041353,-6041.99736684,0.000128,4]
[325231561,1714599041362,-1009.9094425,0.0001285,2]
[325231562,1714599041371,-513.19183306,0.00012866,2]
[325231563,1714599041381,-251.69476738,0.00012866,2]
[325231564,1714599041391,-7500.0,0.00012877,2]
[325231565,1714599041400,-489.67833117,0.0001288,2]
[325231566,1714599041409,-177.85667466,0.0001288,2]
[325231567,1714599041418,-3976.28763043,0.0001288,2]
[325231568,1714599041429,-4770.17399166,0.0001288,2]
[325231594,1714599043125,-2221.03993,0.0001288,2]
[325231595,1714599043136,-865.00999,0.0001288,2]
[325231596,1714599043148,-1644.13257163,0.0001288,2]
[325231597,1714599043159,-259.81768672,0.0001288,2]
[325231598,1714599043181,-757.45058583,0.0001288,2]
[325231599,1714599043193,-409.79455518,0.0001288,2]
[325231600,1714599043204,-571.80755206,0.0001288,2]
[325231601,1714599043215,-935.21484251,0.0001288,2]
[325231602,1714599043226,-1401.6000012,0.0001288,2]
[325231603,1714599043239,-2222.3037,0.0001288,2]
[325231604,1714599043255,-336.95839996,0.0001288,2]
[325231605,1714599043268,-1966.65077062,0.0001288,2]
[325231606,1714599043279,-7855.50752835,0.0001288,2]
[325231607,1714599043298,-22533.9009607,0.0001288,2]
[325231608,1714599043307,-751.784738,0.0001288,2]
[325231609,1714599043316,-751.78473799,0.00012885,2]
[325231610,1714599043326,-751.78473799,0.0001289,2]
[325231611,1714599043335,-751.78473799,0.00012895,2]
[325231612,1714599043345,-206.02178958,0.00012896,2]
[325231613,1714599043354,-2205.29329035,0.00012898,2]
[325231614,1714599043363,-2309.34852341,0.000129,2]
[325231615,1714599043372,-751.78473799,0.000129,2]
[325231616,1714599043381,-10000.0,0.000129,4]
[325231617,1714599043391,-1175.05193,0.0001297,2]
[325231618,1714599043400,-481.34815665,0.0001297,2]
[325231619,1714599043409,-481.34815665,0.0001297,2]
[325231620,1714599043419,-14916.70668993,0.00012977,2]
[325231621,1714599043431,-6700.5,0.00012977,2]
[325231622,1714599043442,-3057.42688,0.00012977,2]
[325231623,1714599043458,-41223.20385377,0.00012977,2]
[325231624,1714599043469,-419.48949991,0.00012977,2]
[325231625,1714599043480,-477.761752,0.00012977,2]
[325231626,1714599043491,-1468.79524653,0.00012977,2]
[325231627,1714599043502,-30494.98206106,0.00012977,2]
[325231628,1714599043511,-1034.6412428,0.00012979,3]
[325231629,1714599043521,-202.43844117,0.00012979,3]
[325231631,1714599043530,-2000.0,0.00012979,2]
[325231633,1714599043539,-704425.32240845,0.0001298,2]
[325231639,1714599043577,-1250.0,0.0001298,2]
[325231641,1714599043589,-400.0,0.0001298,2]
[325231643,1714599043602,-337.65,0.0001298,2]
[325231645,1714599043613,-414.83927753,0.0001298,2]
[325231827,1714599046373,-250.0,0.0001189,2]
[325231828,1714599046383,-155.0,0.00012969,2]
[325231829,1714599046392,-890.92797266,0.0001298,2]
[325231830,1714599046403,-37181.62119711,0.0001298,2]
[325231831,1714599046418,-1556.7999962,0.0001298,2]
[325231832,1714599046723,-1013.92560801,0.0001298,2]
[325231833,1714599046770,-35017.92085846,0.0001298,2]
[325231834,1714599046782,-4100.0,0.0001298,2]
[325231835,1714599046794,-3462.62223728,0.0001298,2]
[325231836,1714599046805,-2678.34680619,0.0001298,2]
[325231837,1714599046816,-409.20495899,0.0001298,2]
[325231838,1714599046828,-605.50432414,0.0001298,2]
[325231839,1714599046839,-994.19092379,0.0001298,2]
[325231840,1714599046918,-546.66542268,0.0001298,2]
[325231841,1714599046933,-527.62,0.0001298,2]
[325231842,1714599046944,-15258.31412161,0.0001298,2]
[325231843,1714599046955,-310.00217,0.0001298,2]
[325231844,1714599046977,-291.2772942,0.0001298,2]
[325231845,1714599046988,-3352.69443134,0.0001298,2]
[325231846,1714599047000,-500.0,0.0001298,2]
[325231847,1714599217777,607.99923015,0.00010384,2]
[325231849,1714599352976,200.0,0.00010992,2]
[325231850,1714599362570,150.0,0.00010993,2]
[325231851,1714599478175,500.0,0.00010849,2]
[325231852,1714599509079,4248.42,0.00010917,2]
[325231853,1714599696880,4814.48,0.00010959,2]
[325231854,1714599769649,600.0,0.00010667,2]
[325231855,1714599823919,200.0,0.00010959,2]
[325231856,1714599846092,250.0,0.00010579,2]
[325231857,1714600062590,200.0,0.00010568,2]
[325231858,1714600081603,527.47233212,0.00011,2]
[325231859,1714600091898,155.0,0.00011,2]
[325231860,1714600094612,538.40022231,0.00011,2]
[325231861,1714600104502,2357.35273504,0.00011,2]
[325231862,1714600106700,216.22293644,0.00011,2]
[325231863,1714600109700,1996.39282651,0.00011,2]
[325231864,1714600116885,359.88720368,0.00011,2]
[325231865,1714600123057,155.0,0.00011,2]
[325231866,1714600131464,155.0,0.00011,2]
[325231867,1714600207731,545.99933752,0.00011,2]
[325231872,1714600232450,-469.301119,0.00011014,2]
[325231873,1714600232460,-464.19094778,0.00011026,2]
[325231874,1714600232472,-853.55546554,0.00011026,2]
[325231875,1714600232484,-338.36,0.00011026,2]
[325231876,1714600232498,-3894.60932243,0.00011026,2]
[325231877,1714600232508,-1721.41557353,0.00011027,2]
[325231878,1714600232518,-317.14354643,0.00011032,2]
[325231879,1714600232528,-524.19857863,0.00011032,2]
[325231880,1714600232539,-590.55318274,0.00011032,2]
[325231881,1714600232550,-542.78105829,0.00011032,2]
[325231882,1714600232559,-233.6301,0.00011032,2]
[325231883,1714600232568,-215.39026418,0.00011032,2]
[325231884,1714600232578,-357.18340337,0.00011032,2]
[325231885,1714600232588,-1188.700532,0.00011032,2]
[325231886,1714600232597,-297.40880757,0.00011032,2]
[325231887,1714600232607,-272.78729544,0.00011032,2]
[325231888,1714600232616,-347.63707512,0.00011032,2]
[325231889,1714600232626,-177.3980489,0.00011033,2]
[325231890,1714600232635,-1662.42684032,0.00011033,2]
[325231891,1714600232644,-2156.0765382,0.00011034,2]
[325231892,1714600232657,-348.06104,0.00011034,2]
[325231893,1714600232669,-522.13920169,0.00011034,2]
[325231896,1714600232772,-20753.61708443,0.00011034,2]
[325231920,1714600239393,-411.93521121,0.00011034,2]
[325231921,1714600239409,-1491.19186251,0.00011034,2]
[325231922,1714600239425,-2015.07021224,0.00011034,2]
[325231923,1714600239438,-499.99,0.00011034,2]
[325231924,1714600239451,-23387.35,0.00011052,2]
[325231925,1714600239465,-1098.77,0.00011052,2]
[325231926,1714600239478,-240.51,0.00011204,2]
[325231927,1714600239491,-1294.55623512,0.00011207,2]
[325231928,1714600239504,-150.99,0.00011207,2]
[325231929,1714600239517,-150.99,0.00011207,2]
[325231930,1714600239532,-400.0,0.00011222,2]
[325231931,1714600239545,-24241.65297261,0.00011364,2]
[325231932,1714600239560,-24528.68,0.00011374,2]
[325231933,1714600239572,-676.23,0.00011374,2]
[325231934,1714600239585,-322.22999999,0.00011662,2]
[325231935,1714600239598,-155.14585425,0.0001168,2]
[325231937,1714600239611,-81134.9898,0.00011681,2]
[325231939,1714600239623,-1547.7811,0.00011681,2]
[325231941,1714600239636,-10463.9914,0.000117,2]
[325231944,1714600239650,-26340.35,0.000117,2]
[325231946,1714600239663,-1955.0239,0.000117,2]
[325231948,1714600239676,-7500.0,0.000117,2]
[325231951,1714600239689,-404.5331,0.00011753,2]
[325231953,1714600239704,-190.61471315,0.00011779,2]
[325231956,1714600239717,-157.78253506,0.00011779,2]
[325231958,1714600239730,-161.74250678,0.00011779,2]
[325231961,1714600239744,-300.95792734,0.00011779,2]
[325231962,1714600239756,-310.0,0.00011779,2]
[325231963,1714600239769,-196.89901937,0.00011779,2]
[325231964,1714600239784,-156.94283025,0.00011779,2]
[325231965,1714600239797,-212.57270305,0.00011779,2]
[325231966,1714600239811,-941.19979602,0.00011779,2]